bitfinex/quotes_SOLUSD_20250701
["timestamp","ask_amount","ask_price","bid_price","bid_amount"]
[1751383167462,5.41916354,147.54,147.5,31.5888124]
[1751383167758,5.41916354,147.55,147.5,26.16964886]
[1751383168060,0.1,147.58,147.5,31.5888124]
[1751383168361,5.41916354,147.55,147.5,31.5888124]
[1751383170060,5.41916354,147.55,147.5,7.52]
[1751383170263,5.41916354,147.54,147.51,18.64964886]
[1751383171868,5.41916354,147.55,147.51,5.41916354]
[1751383172271,26.0,147.57,147.51,5.41916354]
[1751383172570,5.41916354,147.55,147.51,5.41916354]
[1751383173067,5.51916354,147.58,147.54,24.0688124]
[1751383173642,0.1,147.58,147.54,5.41916354]
[1751383174064,5.51916354,147.58,147.54,5.41916354]
[1751383175265,0.1,147.58,147.56,5.41916354]
[1751383175961,0.1,147.58,147.56,18.64964886]
[1751383176764,0.1,147.58,147.56,5.41916354]
[1751383177075,0.1,147.58,147.57,24.0688124]
[1751383179058,0.1,147.58,147.57,18.64964886]
[1751383180149,0.1,147.58,147.55,5.41916354]
[1751383180544,0.1,147.58,147.56,18.64964886]
[1751383182171,0.1,147.58,147.55,18.64964886]
[1751383182379,5.51916354,147.58,147.55,18.64964886]
[1751383182670,5.51916354,147.58,147.53,24.21097397]
[1751383182874,5.41916354,147.57,147.53,24.0688124]
[1751383183550,5.41916354,147.55,147.53,18.64964886]
[1751383183966,0.1,147.58,147.53,18.64964886]
[1751383184171,5.41916354,147.55,147.53,18.64964886]
[1751383185362,5.41916354,147.56,147.53,18.64964886]
[1751383185578,5.41916354,147.57,147.53,24.0688124]
[1751383186046,0.1,147.58,147.53,24.0688124]
[1751383186368,0.1,147.58,147.55,5.41916354]
[1751383186569,0.1,147.58,147.56,5.41916354]
[1751383186776,0.1,147.58,147.57,18.64964886]
[1751383188077,0.1,147.58,147.57,5.41916354]
[1751383192281,0.1,147.58,147.56,0.14216157]
[1751383192575,0.1,147.58,147.57,5.41916354]
[1751383193883,0.1,147.61,147.58,44.64964886]
[1751383194059,0.1,147.61,147.58,18.64964886]
[1751383194387,5.51916354,147.61,147.58,18.64964886]
[1751383194575,5.41916354,147.6,147.58,18.64964886]
[1751383195473,0.1,147.61,147.56,18.64964886]
[1751383195669,5.41916354,147.6,147.56,24.0688124]
[1751383197987,0.1,147.61,147.56,24.0688124]
[1751383198195,5.51916354,147.61,147.56,18.79181043]
[1751383198358,5.51916354,147.61,147.58,18.64964886]
[1751383198963,5.51916354,147.61,147.56,18.79181043]
[1751383199190,5.51916354,147.61,147.58,18.64964886]
[1751383200264,0.1,147.61,147.58,5.41916354]
[1751383200517,0.1,147.61,147.57,0.14216157]
[1751383200671,0.1,147.61,147.56,24.0688124]
[1751383200989,5.41916354,147.6,147.56,24.0688124]
[1751383202867,5.41916354,147.6,147.56,18.64964886]
[1751383203066,5.41916354,147.6,147.56,24.0688124]
[1751383203591,0.1,147.61,147.56,24.0688124]
[1751383203784,5.51916354,147.61,147.58,18.64964886]
[1751383205087,5.41916354,147.6,147.56,24.0688124]
[1751383205793,5.41916354,147.6,147.56,18.64964886]
[1751383205992,5.41916354,147.6,147.56,24.0688124]
[1751383206296,5.51916354,147.61,147.58,18.64964886]
[1751383206508,5.51916354,147.61,147.6,5.41916354]
[1751383206509,0.1,147.61,147.6,5.41916354]
[1751383206985,0.1,147.61,147.6,5.56132511]
[1751383208064,0.1,147.61,147.6,24.21097397]
[1751383210284,0.1,147.61,147.6,24.0688124]
[1751383210592,0.1,147.61,147.6,18.64964886]
[1751383212581,0.1,147.61,147.59,18.64964886]
[1751383212897,5.51916354,147.61,147.57,12.93916354]
[1751383213074,5.41916354,147.6,147.54,1.6163]
[1751383213270,5.41916354,147.58,147.55,18.64964886]
[1751383213473,5.41916354,147.6,147.57,18.64964886]
[1751383213670,0.1,147.61,147.57,18.64964886]
[1751383213899,5.41916354,147.6,147.57,18.64964886]
[1751383215088,5.51916354,147.61,147.55,18.64964886]
[1751383215297,5.41916354,147.6,147.57,18.64964886]
[1751383215596,5.41916354,147.59,147.56,18.64964886]
[1751383219081,5.41916354,147.58,147.54,18.64964886]
[1751383219278,5.41916354,147.58,147.54,24.0688124]
[1751383220602,5.41916354,147.58,147.54,18.64964886]
[1751383220814,0.1,147.61,147.55,5.41916354]
[1751383221102,5.41916354,147.59,147.56,18.64964886]
[1751383221881,5.41916354,147.6,147.56,18.64964886]
[1751383222085,5.41916354,147.6,147.56,5.41916354]
[1751383222600,5.41916354,147.59,147.56,18.64964886]
[1751383222788,5.41916354,147.59,147.55,18.64964886]
[1751383223205,5.41916354,147.59,147.55,24.0688124]
[1751383225404,5.41916354,147.58,147.55,18.84964886]
[1751383227113,5.51916354,147.59,147.55,24.2688124]
[1751383227310,5.51916354,147.59,147.55,18.84964886]
[1751383227489,5.51916354,147.59,147.55,24.2688124]
[1751383227989,0.1,147.59,147.58,24.0688124]
[1751383228189,0.1,147.59,147.58,5.56132511]
[1751383232108,0.1,147.59,147.58,0.14216157]
[1751383232308,0.1,147.59,147.58,18.64964886]
[1751383232508,0.1,147.59,147.56,18.64964886]
[1751383232701,5.51916354,147.59,147.56,18.64964886]
[1751383233095,0.1,147.59,147.56,18.64964886]
[1751383233292,5.51916354,147.59,147.56,18.64964886]
[1751383236322,5.51916354,147.59,147.55,31.61916354]
[1751383236323,5.41916354,147.58,147.55,0.2]
[1751383237087,5.41916354,147.56,147.55,0.2]
[1751383240612,10.83832708,147.56,147.55,0.2]
[1751383242014,31.20066896,147.56,147.53,0.2]
[1751383242327,31.84564825,147.54,147.53,0.2]
[1751383242997,31.41916354,147.54,147.53,0.2]
[1751383243797,26.0,147.54,147.53,0.2]
[1751383244212,5.41916354,147.55,147.53,0.2]
[1751383244812,7.6643,147.56,147.53,0.2]
[1751383245019,5.41916354,147.55,147.53,0.2]
[1751383245563,0.1,147.59,147.54,5.41916354]
[1751383245719,5.41916354,147.58,147.54,5.41916354]
[1751383246028,5.51916354,147.59,147.55,5.41916354]
[1751383246195,0.1,147.59,147.56,5.41916354]
[1751383246397,0.1,147.59,147.57,5.41916354]
[1751383247425,0.1,147.59,147.56,5.41916354]
[1751383248328,0.1,147.59,147.58,24.0688124]
[1751383251657,0.1,147.59,147.58,18.64964886]
[1751383252167,0.1,147.59,147.56,50.0688124]
[1751383252342,0.1,147.59,147.56,24.0688124]
[1751383252540,0.1,147.59,147.54,26.0]
[1751383252541,5.51916354,147.59,147.54,26.0]
[1751383252746,5.41916354,147.58,147.54,31.41916354]
[1751383252965,0.1,147.59,147.54,31.41916354]
[1751383253150,5.41916354,147.58,147.54,31.41916354]
[1751383253535,5.41916354,147.58,147.54,5.41916354]
[1751383254469,5.41916354,147.58,147.53,18.84964886]
[1751383254470,5.41916354,147.56,147.53,0.2]
[1751383254768,5.41916354,147.55,147.53,0.2]
[1751383257541,0.1,147.59,147.53,0.2]
[1751383257542,5.41916354,147.56,147.53,0.2]
[1751383258766,0.1,147.59,147.53,0.2]
[1751383258941,5.41916354,147.56,147.53,0.2]
[1751383260880,5.41916354,147.55,147.53,0.2]
[1751383261363,5.41916354,147.54,147.53,0.2]
[1751383262460,6.3595,147.57,147.53,0.2]
[1751383262640,5.41916354,147.55,147.53,0.2]
[1751383263365,5.41916354,147.54,147.53,0.2]
[1751383263737,6.3595,147.57,147.53,0.2]
[1751383263944,5.41916354,147.54,147.53,0.2]
[1751383264163,7.06192511,147.54,147.53,0.2]
[1751383264668,6.91976354,147.54,147.53,0.2]
[1751383264871,31.41916354,147.54,147.53,0.2]
[1751383265772,5.41916354,147.54,147.53,0.2]
[1751383265950,26.0,147.56,147.53,0.2]
[1751383266273,5.41916354,147.56,147.53,0.2]
[1751383266844,5.41916354,147.57,147.53,5.61916354]
[1751383267059,31.41916354,147.58,147.53,0.2]
[1751383267261,5.41916354,147.57,147.53,5.61916354]
[1751383268165,0.1,147.59,147.53,5.61916354]
[1751383268370,5.41916354,147.58,147.54,5.41916354]
[1751383268672,5.41916354,147.57,147.53,5.61916354]
[1751383269254,5.41916354,147.56,147.53,0.2]
[1751383272966,5.41916354,147.58,147.54,5.41916354]
[1751383273571,5.51916354,147.59,147.55,5.41916354]
[1751383273887,0.1,147.59,147.55,5.41916354]
[1751383274183,5.51916354,147.59,147.55,5.41916354]
[1751383274748,5.41916354,147.58,147.54,5.41916354]
[1751383274956,5.41916354,147.57,147.53,5.61916354]
[1751383275160,5.41916354,147.57,147.53,24.2688124]
[1751383275363,0.1,147.56,147.53,24.2688124]
[1751383275624,0.1,147.56,147.53,18.84964886]
[1751383275958,0.1,147.56,147.53,24.2688124]
[1751383276285,0.1,147.56,147.55,24.0688124]
[1751383279376,0.1,147.56,147.55,5.41916354]
[1751383279579,0.1,147.56,147.54,6.98756354]
[1751383279781,0.1,147.56,147.55,5.41916354]
[1751383280490,0.1,147.56,147.54,1.5684]
[1751383280809,0.1,147.56,147.55,5.41916354]
[1751383281308,0.1,147.56,147.55,24.0688124]
[1751383282005,0.1,147.56,147.55,24.49529711]
[1751383282481,0.1,147.56,147.55,18.64964886]
[1751383282682,0.1,147.56,147.55,24.0688124]
[1751383285293,0.1,147.56,147.55,26.0]
[1751383285476,0.1,147.56,147.54,5.41916354]
[1751383286176,0.1,147.56,147.55,5.41916354]
[1751383288198,0.1,147.56,147.55,31.84564825]
[1751383288501,0.1,147.56,147.55,50.0688124]
[1751383289599,0.1,147.56,147.55,50.49529711]
[1751383289976,0.1,147.56,147.55,50.0688124]
[1751383290586,0.1,147.56,147.54,5.41916354]
[1751383290781,0.1,147.56,147.53,18.84964886]
[1751383291004,0.1,147.56,147.53,24.2688124]
[1751383291303,0.1,147.56,147.54,5.41916354]
[1751383291507,0.1,147.56,147.55,5.41916354]
[1751383293377,0.1,147.56,147.53,18.84964886]
[1751383293583,0.1,147.56,147.55,5.41916354]
[1751383294500,0.1,147.56,147.55,24.0688124]
[1751383294810,0.1,147.56,147.55,50.0688124]
[1751383297207,0.1,147.56,147.55,50.49529711]
[1751383298495,0.1,147.56,147.55,55.91446065]
[1751383298705,0.1,147.56,147.55,57.51926065]
[1751383298902,0.1,147.56,147.55,59.71926065]
[1751383299284,0.1,147.59,147.58,44.64964886]
[1751383299501,0.1,147.59,147.58,50.49529711]
[1751383301494,0.1,147.59,147.58,50.0688124]
[1751383304791,0.1,147.59,147.58,50.49529711]
[1751383306208,0.1,147.61,147.6,0.42648471]
[1751383306409,0.1,147.61,147.6,52.67529711]
[1751383308410,0.1,147.61,147.6,24.49529711]
[1751383308592,0.1,147.61,147.6,24.0688124]
[1751383313617,0.1,147.61,147.6,24.49529711]
[1751383314003,0.1,147.61,147.6,52.67529711]
[1751383318322,0.1,147.62,147.61,45.07613357]
[1751383318523,0.1,147.62,147.61,58.19372152]
[1751383319017,0.1,147.62,147.61,32.19372152]
[1751383319250,0.1,147.62,147.61,179.89372152]
[1751383319394,0.1,147.62,147.61,179.21626065]
[1751383319599,0.1,147.62,147.61,173.79709711]
[1751383320225,0.1,147.62,147.61,179.21626065]
[1751383320724,0.1,147.63,147.61,179.21626065]
[1751383320900,0.1,147.63,147.62,58.32539092]
[1751383321234,0.1,147.63,147.62,58.75187563]
[1751383321609,0.1,147.63,147.62,47.91354855]
[1751383321808,0.1,147.63,147.62,58.75187563]
[1751383324826,0.1,147.63,147.62,62.14614908]
[1751383325031,0.1,147.63,147.62,50.63040702]
[1751383325222,0.1,147.63,147.62,82.04957056]
[1751383326236,0.1,147.63,147.62,81.90740899]
[1751383326428,0.1,147.63,147.62,48.32824545]
[1751383326734,0.1,147.63,147.62,78.2288124]
[1751383327130,0.1,147.63,147.62,50.0688124]
[1751383328173,0.1,147.63,147.62,24.0688124]
[1751383329806,0.1,147.63,147.62,5.41916354]
[1751383330928,0.1,147.63,147.61,5.41916354]
[1751383331516,0.1,147.63,147.62,5.41916354]
[1751383332715,0.1,147.63,147.62,24.0688124]
[1751383337252,0.1,147.63,147.62,24.49529711]
[1751383338832,0.1,147.63,147.62,55.91446065]
[1751383339057,0.1,147.65,147.63,45.07613357]
[1751383339230,0.1,147.65,147.63,55.91446065]
[1751383340152,0.1,147.65,147.64,45.07613357]
[1751383340349,0.1,147.67,147.66,0.28432314]
[1751383340551,0.1,147.67,147.66,59.93313554]
[1751383340752,0.1,147.67,147.66,60.07529711]
[1751383342123,0.1,147.67,147.66,86.07529711]
[1751383343045,0.1,147.67,147.62,8.63220313]
[1751383343257,0.1,147.67,147.66,5.41916354]
[1751383343547,0.1,147.67,147.66,50.0688124]
[1751383344046,0.1,147.67,147.66,24.0688124]
[1751383344348,0.1,147.67,147.63,7.44]
[1751383344546,0.1,147.67,147.65,5.41916354]
[1751383344846,0.1,147.67,147.66,24.0688124]
[1751383347828,0.1,147.67,147.66,50.0688124]
[1751383349130,0.1,147.67,147.66,24.0688124]
[1751383352749,0.1,147.67,147.64,26.0]
[1751383352955,0.1,147.67,147.65,24.0688124]
[1751383353361,0.1,147.67,147.66,5.41916354]
[1751383355240,0.1,147.67,147.66,78.47313554]
[1751383356056,0.1,147.7,147.69,44.64964886]
[1751383356257,0.1,147.7,147.69,55.91446065]
[1751383358359,0.1,147.7,147.69,45.07613357]
[1751383358537,0.1,147.7,147.69,55.91446065]
[1751383360072,0.1,147.7,147.69,45.07613357]
[1751383360242,0.1,147.7,147.69,50.49529711]
[1751383360435,0.1,147.7,147.69,44.64964886]
[1751383360662,0.1,147.7,147.69,50.0688124]
[1751383361143,0.1,147.7,147.69,44.64964886]
[1751383361343,0.1,147.7,147.69,50.0688124]
[1751383362457,0.1,147.7,147.69,24.0688124]
[1751383362650,0.1,147.7,147.69,5.41916354]
[1751383366245,0.1,147.7,147.69,24.0688124]
[1751383368174,0.1,147.7,147.67,26.0]
[1751383368571,0.1,147.7,147.68,5.41916354]
[1751383368774,0.1,147.7,147.66,18.64964886]
[1751383368969,0.1,147.7,147.66,5.41916354]
[1751383369673,5.41916354,147.69,147.65,18.64964886]
[1751383369885,5.41916354,147.68,147.64,5.41916354]
[1751383370057,5.41916354,147.69,147.65,5.41916354]
[1751383370257,5.41916354,147.69,147.62,54.38964886]
[1751383370454,0.1,147.7,147.64,5.41916354]
[1751383370662,0.1,147.7,147.65,5.41916354]
[1751383370663,5.41916354,147.69,147.65,5.41916354]
[1751383371656,0.1,147.7,147.63,0.14216157]
[1751383371861,0.1,147.7,147.67,5.41916354]
[1751383372062,5.51916354,147.7,147.66,5.41916354]
[1751383372578,0.1,147.7,147.66,5.41916354]
[1751383372951,5.41916354,147.69,147.65,5.41916354]
[1751383373462,0.1,147.7,147.66,5.41916354]
[1751383373669,5.51916354,147.7,147.66,5.41916354]
[1751383374368,5.41916354,147.69,147.65,5.41916354]
[1751383374756,5.41916354,147.69,147.65,5.61916354]
[1751383374965,5.41916354,147.68,147.65,0.2]
[1751383375981,11.97616354,147.67,147.65,0.2]
[1751383377659,7.07146354,147.66,147.65,0.2]
[1751383382566,11.97616354,147.67,147.65,0.2]
[1751383383185,5.41916354,147.66,147.65,0.2]
[1751383384184,2.8,147.68,147.65,5.61916354]
[1751383384383,2.8,147.68,147.66,5.41916354]
[1751383384583,2.8,147.68,147.65,5.61916354]
[1751383385184,2.8,147.68,147.65,0.2]
[1751383385185,8.21916354,147.68,147.65,0.2]
[1751383385584,2.8,147.68,147.65,5.61916354]
[1751383385965,2.8,147.68,147.65,0.2]
[1751383386289,2.8,147.68,147.66,5.41916354]
[1751383386663,0.1,147.69,147.65,0.2]
[1751383386863,0.1,147.69,147.65,5.61916354]
[1751383387082,5.51916354,147.69,147.65,5.61916354]
[1751383387572,5.41916354,147.68,147.65,0.2]
[1751383387770,0.1,147.69,147.65,0.2]
[1751383387974,5.41916354,147.68,147.65,0.2]
[1751383388173,5.41916354,147.67,147.65,0.2]
[1751383388488,0.1,147.69,147.65,0.2]
[1751383388690,5.41916354,147.67,147.65,0.2]
[1751383389378,0.1,147.69,147.65,0.2]
[1751383389575,5.41916354,147.67,147.65,0.2]
[1751383390283,5.41916354,147.66,147.65,0.2]
[1751383392192,28.8,147.68,147.65,0.2]
[1751383392498,5.41916354,147.67,147.65,0.2]
[1751383392891,28.8,147.68,147.65,0.2]
[1751383393095,5.41916354,147.66,147.65,0.2]
[1751383394492,26.1,147.67,147.65,0.2]
[1751383394673,5.41916354,147.66,147.65,0.2]
[1751383399925,31.51916354,147.67,147.65,0.2]
[1751383400106,5.51916354,147.67,147.65,0.2]
[1751383400901,5.41916354,147.66,147.65,0.2]
[1751383403915,26.1,147.67,147.65,0.2]
[1751383404222,5.41916354,147.66,147.65,0.2]
[1751383405321,26.1,147.67,147.65,0.2]
[1751383405518,5.41916354,147.66,147.65,0.2]
[1751383408112,5.51916354,147.67,147.65,0.2]
[1751383409000,5.41916354,147.66,147.65,0.2]
[1751383409911,0.1,147.67,147.65,0.2]
[1751383410117,5.41916354,147.66,147.65,0.2]
[1751383410307,5.51916354,147.67,147.65,0.2]
[1751383411206,5.41916354,147.66,147.65,0.2]
[1751383411620,5.51916354,147.67,147.65,0.2]
[1751383412708,0.1,147.67,147.65,0.2]
[1751383412914,0.1,147.67,147.65,5.61916354]
[1751383413100,0.1,147.67,147.66,5.41916354]
[1751383414914,0.1,147.67,147.66,24.0688124]
[1751383418730,0.1,147.67,147.66,5.41916354]
[1751383421242,0.1,147.67,147.65,5.61916354]
[1751383422149,0.1,147.67,147.66,5.41916354]
[1751383425835,0.1,147.67,147.66,24.0688124]
[1751383427955,0.1,147.67,147.66,5.41916354]
[1751383428127,0.1,147.67,147.65,0.2]
[1751383428328,5.51916354,147.67,147.65,0.2]
[1751383429255,5.41916354,147.66,147.65,0.2]
[1751383429452,0.1,147.67,147.65,0.2]
[1751383429632,5.51916354,147.67,147.65,0.2]
[1751383430930,5.41916354,147.66,147.65,0.2]
[1751383431354,0.1,147.67,147.65,0.2]
[1751383431534,5.51916354,147.67,147.65,0.2]
[1751383432038,0.1,147.67,147.65,0.2]
[1751383432554,5.51916354,147.67,147.65,0.2]
[1751383433060,5.41916354,147.66,147.65,0.2]
[1751383433292,0.1,147.67,147.65,0.2]
[1751383433754,5.41916354,147.66,147.65,0.2]
[1751383434531,5.84564825,147.66,147.65,0.2]
[1751383434733,7.45884825,147.66,147.65,0.2]
[1751383435557,12.86332983,147.66,147.65,0.2]
[1751383435766,26.0,147.63,147.62,0.2]
[1751383435932,37.26481179,147.63,147.62,0.2]
[1751383437571,31.84564825,147.63,147.62,0.2]
[1751383438064,31.41916354,147.63,147.62,0.2]
[1751383439875,31.84564825,147.63,147.62,0.2]
[1751383440071,55.91446065,147.63,147.62,0.2]
[1751383440389,43.83281179,147.63,147.62,0.2]
[1751383442450,62.48246065,147.63,147.62,0.2]
[1751383443086,38.41364825,147.63,147.62,0.2]
[1751383443463,31.41916354,147.63,147.62,0.2]
[1751383444672,0.1,147.67,147.62,5.61916354]
[1751383445052,5.41916354,147.66,147.62,5.61916354]
[1751383446481,5.41916354,147.66,147.62,0.2]
[1751383446664,5.41916354,147.63,147.62,0.2]
[1751383447573,11.26481179,147.63,147.62,0.2]
[1751383448360,5.84564825,147.63,147.62,0.2]
[1751383449371,11.26481179,147.63,147.62,0.2]
[1751383452775,36.68815163,147.63,147.62,0.2]
[1751383454571,64.76815163,147.63,147.62,0.2]
[1751383454756,64.76815163,147.63,147.6,0.2]
[1751383454957,31.84564825,147.61,147.6,0.2]
[1751383457681,57.26990587,147.61,147.6,0.2]
[1751383458769,50.49529711,147.61,147.6,0.2]
[1751383458966,57.26990587,147.61,147.6,0.2]
[1751383459160,50.49529711,147.61,147.6,0.2]
[1751383459993,31.84564825,147.61,147.6,0.2]
[1751383460991,31.84564825,147.61,147.59,0.2]
[1751383461178,36.83832708,147.57,147.56,0.2]
[1751383461385,37.26481179,147.57,147.56,0.2]
[1751383461686,31.84564825,147.57,147.56,0.2]
[1751383462087,37.26481179,147.57,147.56,0.2]
[1751383462887,31.84564825,147.57,147.56,0.2]
[1751383463182,26.42648471,147.57,147.56,0.2]
[1751383463356,31.41916354,147.57,147.56,0.2]
[1751383464081,5.41916354,147.57,147.56,0.2]
[1751383465286,26.0,147.59,147.56,0.2]
[1751383465586,30.9,147.61,147.56,0.2]
[1751383465587,5.41916354,147.58,147.56,0.2]
[1751383465764,26.0,147.58,147.56,0.2]
[1751383465963,31.41916354,147.58,147.56,0.2]
[1751383466490,5.41916354,147.57,147.56,0.2]
[1751383466790,5.41916354,147.58,147.56,0.2]
[1751383467291,5.41916354,147.59,147.56,0.2]
[1751383468895,5.41916354,147.62,147.57,5.41916354]
[1751383470385,5.41916354,147.64,147.6,5.41916354]
[1751383471692,5.41916354,147.63,147.58,6.94186354]
[1751383471878,5.41916354,147.62,147.58,6.94186354]
[1751383472279,5.41916354,147.63,147.59,5.41916354]
[1751383472698,5.41916354,147.63,147.58,1.5227]
[1751383472699,26.1,147.65,147.6,5.41916354]
[1751383472899,5.41916354,147.64,147.6,5.41916354]
[1751383473488,5.41916354,147.63,147.59,5.41916354]
[1751383475300,0.1,147.65,147.61,5.41916354]
[1751383475492,0.1,147.65,147.63,1.5812]
[1751383475694,0.1,147.65,147.64,5.41916354]
[1751383476478,0.1,147.69,147.63,1.5812]
[1751383476784,5.51916354,147.69,147.65,5.41916354]
[1751383477490,5.41916354,147.68,147.63,1.5812]
[1751383477791,5.41916354,147.65,147.63,1.5812]
[1751383478369,5.41916354,147.64,147.6,6.1277]
[1751383478571,5.41916354,147.63,147.6,6.1277]
[1751383478791,5.41916354,147.65,147.61,5.41916354]
[1751383479196,26.42648471,147.68,147.61,5.41916354]
[1751383479389,5.41916354,147.65,147.61,5.41916354]
[1751383479596,5.41916354,147.65,147.6,11.54686354]
[1751383480288,5.41916354,147.64,147.6,11.54686354]
[1751383480882,5.41916354,147.64,147.6,6.1277]
[1751383481082,5.41916354,147.63,147.6,6.1277]
[1751383481282,5.41916354,147.64,147.6,11.54686354]
[1751383482200,5.41916354,147.64,147.6,6.1277]
[1751383482396,26.42648471,147.68,147.6,11.54686354]
[1751383482699,5.41916354,147.64,147.6,11.54686354]
[1751383483991,5.41916354,147.62,147.59,1.787]
[1751383484391,5.41916354,147.63,147.59,7.20616354]
[1751383485992,5.41916354,147.63,147.59,1.787]
[1751383486190,5.41916354,147.62,147.59,1.787]
[1751383486391,5.41916354,147.62,147.59,7.20616354]
[1751383486603,5.41916354,147.63,147.59,7.20616354]
[1751383486798,5.41916354,147.62,147.59,1.787]
[1751383487004,5.41916354,147.61,147.59,1.787]
[1751383489194,5.41916354,147.62,147.59,1.787]
[1751383489410,5.41916354,147.63,147.59,7.20616354]
[1751383489593,5.41916354,147.64,147.6,5.41916354]
[1751383490299,5.41916354,147.65,147.61,5.41916354]
[1751383491702,5.41916354,147.66,147.62,5.41916354]
[1751383492092,5.41916354,147.66,147.61,5.41916354]
[1751383492911,5.41916354,147.65,147.61,5.41916354]
[1751383493513,0.1,147.64,147.59,1.787]
[1751383493890,5.41916354,147.62,147.59,1.787]
[1751383494791,5.41916354,147.61,147.59,1.787]
[1751383495120,0.1,147.64,147.6,5.41916354]
[1751383495289,0.1,147.64,147.62,5.41916354]
[1751383497823,0.1,147.64,147.61,7.01666354]
[1751383499727,0.1,147.64,147.61,1.5975]
[1751383500027,0.1,147.64,147.62,5.41916354]
[1751383500605,5.51916354,147.64,147.59,5.61916354]
[1751383501124,5.51916354,147.64,147.6,5.41916354]
[1751383501689,0.1,147.64,147.61,5.41916354]
[1751383502309,0.1,147.64,147.59,0.2]
[1751383502627,0.1,147.64,147.61,5.41916354]
[1751383503204,5.51916354,147.64,147.59,0.2]
[1751383503396,0.1,147.64,147.6,5.41916354]
[1751383503595,0.1,147.64,147.61,5.41916354]
[1751383505408,0.1,147.64,147.63,5.41916354]
[1751383506004,0.1,147.64,147.63,31.14227594]
[1751383507125,0.1,147.64,147.63,25.7231124]
[1751383507805,0.1,147.64,147.63,31.14227594]
[1751383508109,0.1,147.64,147.63,57.56876065]
[1751383508431,0.1,147.64,147.63,64.94876065]
[1751383508727,0.1,147.64,147.63,68.94625174]
[1751383511018,0.1,147.64,147.63,42.94625174]
[1751383511528,0.1,147.64,147.63,71.00625174]
[1751383515419,0.1,147.64,147.63,97.00625174]
[1751383516544,0.1,147.68,147.64,19.07613357]
[1751383516708,0.1,147.68,147.67,24.0688124]
[1751383517235,0.1,147.68,147.67,38.66194626]
[1751383517419,0.1,147.69,147.68,18.64964886]
[1751383517619,0.1,147.69,147.68,29.48797594]
[1751383518040,0.1,147.7,147.69,45.07613357]
[1751383518363,0.1,147.71,147.69,45.07613357]
[1751383518364,0.1,147.71,147.7,18.64964886]
[1751383518553,0.1,147.73,147.72,44.64964886]
[1751383518847,0.1,147.73,147.72,78.55529711]
[1751383519138,2.8,147.82,147.73,19.07613357]
[1751383519451,2.8,147.82,147.78,5.41916354]
[1751383519665,8.21916354,147.82,147.78,5.41916354]
[1751383521048,2.8,147.82,147.78,5.41916354]
[1751383521357,8.21916354,147.82,147.78,5.41916354]
[1751383522054,5.41916354,147.81,147.76,5.41916354]
[1751383522232,5.41916354,147.81,147.77,5.41916354]
[1751383523962,8.21916354,147.82,147.78,5.41916354]
[1751383524669,5.41916354,147.8,147.76,5.41916354]
[1751383525030,5.41916354,147.79,147.75,5.41916354]
[1751383525248,2.8,147.82,147.75,5.41916354]
[1751383525553,5.41916354,147.8,147.76,5.41916354]
[1751383526452,5.41916354,147.8,147.73,18.64964886]
[1751383526663,5.41916354,147.77,147.71,18.64964886]
[1751383526956,5.41916354,147.76,147.72,5.41916354]
[1751383527462,5.41916354,147.77,147.72,5.41916354]
[1751383527659,4.3488,147.79,147.72,5.41916354]
[1751383527861,4.3488,147.79,147.74,5.41916354]
[1751383528162,5.41916354,147.78,147.74,5.41916354]
[1751383528336,8.21916354,147.79,147.75,5.41916354]
[1751383528531,0.1,147.76,147.72,0.14216157]
[1751383528737,0.1,147.76,147.75,5.41916354]
[1751383533371,0.1,147.76,147.73,5.41916354]
[1751383534845,0.1,147.76,147.74,5.41916354]
[1751383535041,0.1,147.76,147.75,5.41916354]
[1751383538971,0.1,147.76,147.75,24.0688124]
[1751383541383,0.1,147.76,147.75,5.41916354]
[1751383541552,0.1,147.76,147.72,18.64964886]